bitfinex/quotes_BTCUSD_20240703
["timestamp","ask_amount","ask_price","bid_price","bid_amount"]
[1719982595793,0.00184,60941.0,60940.0,0.88811777]
[1719982596728,0.00184,60941.0,60940.0,0.91811777]
[1719982596858,0.00184,60941.0,60940.0,1.01151777]
[1719982598120,0.00184,60941.0,60940.0,1.25386357]
[1719982598760,0.00184,60941.0,60940.0,1.17181657]
[1719982599151,0.00184,60941.0,60940.0,1.16881657]
[1719982599352,0.00084,60941.0,60940.0,1.16581657]
[1719982599548,0.00184,60941.0,60940.0,1.17581657]
[1719982600494,0.00284,60941.0,60940.0,1.18981657]
[1719982600925,0.00284,60941.0,60940.0,1.09641657]
[1719982601125,0.00284,60941.0,60940.0,1.18981657]
[1719982603237,0.00284,60941.0,60940.0,1.27186357]
[1719982603655,0.00184,60941.0,60940.0,1.25786357]
[1719982604156,0.00184,60941.0,60940.0,1.59805357]
[1719982604346,0.00084,60941.0,60940.0,1.58805357]
[1719982605370,0.00184,60941.0,60940.0,1.59005357]
[1719982605922,0.00184,60941.0,60940.0,1.42595857]
[1719982606281,0.40904839,60952.0,60951.0,0.91011777]
[1719982606481,0.00837,60957.0,60956.0,0.91011777]
[1719982606682,0.00837,60957.0,60956.0,1.00351777]
[1719982606894,0.00837,60957.0,60956.0,0.91011777]
[1719982607472,0.00837,60957.0,60956.0,1.07041657]
[1719982607711,0.00837,60957.0,60956.0,1.16381657]
[1719982608804,0.00837,60957.0,60956.0,1.17281657]
[1719982613240,0.00837,60957.0,60956.0,1.16144257]
[1719982613584,0.00837,60957.0,60956.0,1.25484257]
[1719982614906,0.00837,60957.0,60956.0,1.58294657]
[1719982615681,0.00837,60957.0,60956.0,1.57794657]
[1719982615911,0.00837,60957.0,60956.0,1.59194657]
[1719982616077,0.00837,60957.0,60956.0,1.58794657]
[1719982617484,0.00837,60957.0,60956.0,1.17781657]
[1719982618481,0.00837,60957.0,60956.0,1.19181657]
[1719982618659,0.00837,60957.0,60956.0,1.05441657]
[1719982618792,0.00837,60957.0,60956.0,1.07041657]
[1719982618999,0.00837,60957.0,60956.0,1.08441657]
[1719982619200,0.00837,60957.0,60956.0,1.19181657]
[1719982619619,0.00837,60957.0,60956.0,1.09841657]
[1719982620809,0.00837,60957.0,60956.0,1.19181657]
[1719982621192,0.00837,60957.0,60956.0,1.09841657]
[1719982621534,0.00837,60957.0,60956.0,1.11351657]
[1719982625702,0.00837,60957.0,60956.0,1.49364657]
[1719982625823,0.00837,60957.0,60956.0,1.52364657]
[1719982626021,0.00837,60957.0,60956.0,1.61704657]
[1719982626444,0.00837,60957.0,60956.0,1.60304657]
[1719982626642,0.00797489,60957.0,60956.0,1.60304657]
[1719982627045,0.00797489,60957.0,60956.0,1.61704657]
[1719982628053,0.00797489,60957.0,60956.0,1.60304657]
[1719982628448,0.00797489,60957.0,60956.0,1.61704657]
[1719982629924,0.00797489,60957.0,60956.0,1.91704657]
[1719982630757,0.00797489,60957.0,60956.0,2.10409857]
[1719982631395,0.00797489,60957.0,60956.0,1.71069857]
[1719982631612,0.00797489,60957.0,60956.0,1.80409857]
[1719982633198,0.00797489,60957.0,60956.0,1.64004657]
[1719982636997,0.00797489,60957.0,60956.0,1.35959457]
[1719982637205,0.00797489,60957.0,60956.0,1.45299457]
[1719982637369,0.00797489,60957.0,60956.0,1.61704657]
[1719982637633,0.00797489,60957.0,60956.0,1.91704657]
[1719982639661,0.00797489,60957.0,60956.0,2.08109857]
[1719982639863,0.00797489,60957.0,60956.0,2.10409857]
[1719982642882,0.00797489,60957.0,60956.0,1.84664657]
[1719982643090,0.00797489,60957.0,60956.0,1.94004657]
[1719982643243,0.00797489,60957.0,60956.0,2.10409857]
[1719982643445,0.00797489,60957.0,60956.0,1.94004657]
[1719982643856,0.00797489,60957.0,60956.0,2.10409857]
[1719982644623,0.00797489,60957.0,60956.0,1.94004657]
[1719982644743,0.00797489,60957.0,60956.0,1.64004657]
[1719982645159,0.00797489,60957.0,60956.0,1.94004657]
[1719982645396,0.00797489,60957.0,60956.0,1.64004657]
[1719982647623,0.00797489,60957.0,60956.0,1.45299457]
[1719982648040,0.00797489,60957.0,60956.0,1.61704657]
[1719982649415,0.00797489,60957.0,60956.0,1.45299457]
[1719982649815,0.00797489,60957.0,60956.0,1.61704657]
[1719982650414,0.00797489,60957.0,60956.0,1.45299457]
[1719982650828,0.00797489,60957.0,60956.0,1.61704657]
[1719982651539,0.1,60978.0,60977.0,0.03]
[1719982651750,0.03481761,60980.0,60977.0,0.03]
[1719982652651,0.0326,60986.0,60982.0,0.28121777]
[1719982652875,0.0326,60986.0,60981.0,0.28121777]
[1719982652876,0.0934,60983.0,60981.0,0.28121777]
[1719982653524,0.1934,60983.0,60981.0,0.28121777]
[1719982653983,0.1,60983.0,60982.0,0.34121777]
[1719982654224,0.14181492,60984.0,60983.0,0.28121777]
[1719982654457,0.14181492,60984.0,60982.0,0.28121777]
[1719982654898,0.13521492,60984.0,60982.0,0.28121777]
[1719982655123,0.13521492,60984.0,60983.0,0.28121777]
[1719982655336,0.23521492,60984.0,60983.0,0.28121777]
[1719982655994,0.14181492,60984.0,60983.0,0.28121777]
[1719982656447,0.14181492,60984.0,60982.0,0.28221777]
[1719982656665,0.14181492,60984.0,60983.0,0.28121777]
[1719982657090,0.14181492,60984.0,60983.0,0.28321777]
[1719982657303,0.14181492,60984.0,60983.0,0.002]
[1719982657520,0.14181492,60984.0,60983.0,0.001]
[1719982657947,0.14181492,60984.0,60983.0,0.28221777]
[1719982658167,0.14181492,60984.0,60983.0,0.001]
[1719982658389,0.14181492,60984.0,60983.0,0.002]
[1719982658614,0.14181492,60984.0,60983.0,0.28321777]
[1719982658838,0.14181492,60984.0,60983.0,0.34321777]
[1719982660217,0.04181492,60984.0,60983.0,0.34321777]
[1719982661114,0.04181492,60984.0,60983.0,0.34221777]
[1719982662034,0.04181492,60984.0,60983.0,0.34121777]
[1719982662925,0.04181492,60984.0,60981.0,0.28121777]
[1719982663150,0.04181492,60984.0,60983.0,0.34121777]
[1719982664537,0.14181492,60984.0,60983.0,0.34121777]
[1719982664983,0.04181492,60984.0,60983.0,0.34121777]
[1719982665199,0.14181492,60984.0,60983.0,0.34121777]
[1719982667631,0.04181492,60984.0,60983.0,0.34121777]
[1719982668373,0.04181492,60984.0,60981.0,0.03255675]
[1719982668592,0.0934,60982.0,60981.0,0.03255675]
[1719982672342,0.0954,60982.0,60981.0,0.03255675]
[1719982673947,0.0954,60982.0,60980.0,0.28214177]
[1719982675534,0.0934,60982.0,60980.0,0.28214177]
[1719982675753,0.0954,60982.0,60980.0,0.28214177]
[1719982677169,0.0954,60982.0,60981.0,0.34121777]
[1719982677937,0.0954,60982.0,60981.0,0.03255675]
[1719982678238,0.2556988,60982.0,60981.0,0.03255675]
[1719982678441,0.1,60982.0,60981.0,0.03255675]
[1719982678639,0.1934,60982.0,60981.0,0.03255675]
[1719982678843,0.1954,60982.0,60981.0,0.03255675]
[1719982679096,0.102,60982.0,60981.0,0.03255675]
[1719982679297,0.1954,60982.0,60981.0,0.03255675]
[1719982679615,0.102,60982.0,60981.0,0.37377452]
[1719982679826,0.002,60982.0,60981.0,0.37377452]
[1719982680226,0.002,60982.0,60981.0,0.03255675]
[1719982681542,0.0954,60982.0,60981.0,0.03255675]
[1719982682541,0.0954,60982.0,60980.0,0.000924]
[1719982682743,0.0954,60982.0,60980.0,0.03348075]
[1719982683418,0.0934,60982.0,60980.0,0.03348075]
[1719982683681,0.0964,60982.0,60980.0,0.03348075]
[1719982685194,0.0934,60982.0,60980.0,0.03348075]
[1719982685462,0.19181479,60981.0,60980.0,0.03348075]
[1719982685890,0.29181479,60981.0,60980.0,0.000924]
[1719982686710,0.29681479,60981.0,60980.0,0.000924]
[1719982688185,0.29649658,60981.0,60980.0,0.000924]
[1719982691213,0.2652988,60981.0,60980.0,0.000924]
[1719982691412,0.29649948,60981.0,60980.0,0.000924]
[1719982692067,0.29649948,60981.0,60957.0,0.28121777]
[1719982692068,0.01878223,60973.0,60957.0,0.28121777]
[1719982692216,0.0934,60958.0,60957.0,0.03255675]
[1719982694205,0.1,60968.0,60957.0,0.03655675]
[1719982694411,0.0934,60958.0,60957.0,0.03655675]
[1719982694916,0.0934,60958.0,60957.0,0.04055675]
[1719982696155,0.0934,60958.0,60957.0,0.03655675]
[1719982696486,0.0934,60958.0,60957.0,0.03755675]
[1719982696736,0.0934,60958.0,60957.0,0.03655675]
[1719982696921,0.0934,60958.0,60957.0,0.37777452]
[1719982697129,0.0934,60958.0,60957.0,0.62297452]
[1719982697130,0.001,60958.0,60957.0,0.62297452]
[1719982697393,0.0934,60959.0,60957.0,0.2492]
[1719982697600,0.0934,60958.0,60957.0,0.2492]
[1719982697798,0.0944,60958.0,60957.0,0.59041777]
[1719982698212,0.0944,60958.0,60957.0,0.2492]
[1719982698335,0.0944,60958.0,60957.0,0.2452]
[1719982698545,0.0954,60958.0,60957.0,0.58641777]
[1719982699457,0.0944,60958.0,60957.0,0.58641777]
[1719982700270,0.0954,60958.0,60957.0,0.58641777]
[1719982702492,0.0954,60958.0,60940.0,0.082971]
[1719982702493,0.0954,60958.0,60952.0,0.28121777]
[1719982702714,0.0934,60953.0,60952.0,0.31377452]
[1719982704278,0.0934,60953.0,60952.0,0.31877452]
[1719982704475,0.0934,60955.0,60952.0,0.31877452]
[1719982704934,0.0934,60955.0,60952.0,0.31872389]
[1719982705133,0.0934,60957.0,60956.0,0.28121777]
[1719982705629,0.0934,60957.0,60955.0,0.28121777]
[1719982706052,0.0934,60957.0,60954.0,0.51361777]
[1719982706310,0.1,60965.0,60956.0,0.28121777]
[1719982706509,0.1,60965.0,60962.0,0.28121777]
[1719982706510,0.065729,60965.0,60962.0,0.28121777]
[1719982706709,0.1,60968.0,60966.0,0.28121777]
[1719982706910,0.1,60968.0,60964.0,0.2324]
[1719982707129,0.0934,60967.0,60964.0,0.2324]
[1719982707353,0.1934,60967.0,60964.0,0.2324]
[1719982708514,0.1934,60967.0,60964.0,0.51361777]
[1719982708750,0.1934,60967.0,60965.0,0.28121777]
[1719982708928,0.1934,60967.0,60966.0,0.28121777]
[1719982709128,0.1934,60967.0,60964.0,0.51361777]
[1719982709536,0.1934,60967.0,60966.0,0.28121777]
[1719982709704,0.1934,60967.0,60964.0,0.2324]
[1719982710828,0.40904839,60969.0,60964.0,0.2324]
[1719982711042,0.0934,60966.0,60964.0,0.2324]
[1719982711472,0.265721,60973.0,60964.0,0.51361777]
[1719982711688,0.0934,60966.0,60964.0,0.51361777]
[1719982712061,0.0934,60966.0,60964.0,0.54612389]
[1719982712266,0.0934,60966.0,60964.0,0.26490612]
[1719982712480,0.0934,60966.0,60964.0,0.54612389]
[1719982712678,0.06409314,60970.0,60969.0,0.34121777]
[1719982713080,0.1097,60970.0,60969.0,0.34121777]
[1719982713329,0.2097,60970.0,60968.0,0.28121777]
[1719982713501,0.1,60969.0,60966.0,0.28121777]
[1719982713753,0.0934,60967.0,60966.0,0.28121777]
[1719982715806,0.1,60969.0,60967.0,0.28121777]
[1719982716158,0.2536988,60968.0,60964.0,0.03250612]
[1719982716372,0.0934,60966.0,60964.0,0.03250612]
[1719982718023,0.0974,60966.0,60964.0,0.03250612]
[1719982720823,0.0974,60966.0,60964.0,0.31372389]
[1719982721171,0.0974,60966.0,60964.0,0.28121777]
[1719982722210,0.004,60966.0,60965.0,0.28121777]
[1719982722392,0.004,60966.0,60965.0,0.52521777]
[1719982722796,0.004,60966.0,60965.0,0.61772389]
[1719982722993,0.004,60966.0,60965.0,0.55772389]
[1719982723216,0.1934,60969.0,60965.0,0.55772389]
[1719982723426,0.004,60966.0,60965.0,0.55772389]
[1719982724141,0.1934,60969.0,60965.0,0.55772389]
[1719982724301,0.001,60966.0,60965.0,0.55772389]
[1719982725096,0.1934,60969.0,60965.0,0.55772389]
[1719982725303,0.1934,60969.0,60966.0,0.28121777]
[1719982725505,0.1934,60969.0,60967.0,0.1391]
[1719982725865,0.1934,60969.0,60965.0,0.31372389]
[1719982726411,0.001,60966.0,60965.0,0.31372389]
[1719982726793,0.1934,60969.0,60965.0,0.31372389]
[1719982727160,0.1974,60969.0,60965.0,0.03250612]
[1719982727602,0.0934,60967.0,60965.0,0.03250612]
[1719982728431,0.0934,60967.0,60965.0,0.31372389]
[1719982728659,0.0934,60967.0,60965.0,0.03250612]
[1719982729701,0.0954,60967.0,60965.0,0.03250612]
[1719982732952,0.0954,60967.0,60962.0,0.41441777]
[1719982733160,0.0954,60967.0,60962.0,0.44692389]
[1719982733430,0.0954,60967.0,60962.0,0.41441777]
[1719982733607,0.0934,60967.0,60962.0,0.41441777]
[1719982733818,0.0954,60967.0,60962.0,0.41441777]
[1719982734025,0.0954,60967.0,60962.0,0.1332]
[1719982734454,0.0934,60967.0,60962.0,0.1332]
[1719982734776,0.1,60969.0,60962.0,0.1332]
[1719982734777,0.0934,60964.0,60962.0,0.1332]
[1719982735691,0.0934,60964.0,60963.0,0.28121777]
[1719982736116,0.0934,60964.0,60962.0,0.1332]
[1719982736726,0.0934,60964.0,60962.0,0.1352]
[1719982737674,0.0934,60964.0,60962.0,0.1332]
[1719982739208,0.0934,60964.0,60961.0,0.1075]
[1719982739437,0.0934,60964.0,60961.0,0.38871777]
[1719982740430,0.0934,60962.0,60961.0,0.03250612]
[1719982741421,0.0233948,60973.0,60961.0,0.03250612]
[1719982741763,0.28260784,60972.0,60961.0,0.03250612]
[1719982742066,0.0934,60962.0,60961.0,0.03250612]
[1719982742307,0.0934,60962.0,60961.0,0.03350612]
[1719982743487,0.0934,60962.0,60961.0,0.03250612]
[1719982744026,0.0934,60962.0,60961.0,0.03350612]
[1719982744415,0.0934,60962.0,60961.0,0.03250612]
[1719982744795,0.0934,60962.0,60961.0,0.03350612]
[1719982744996,0.0934,60962.0,60961.0,0.03450612]
[1719982745647,0.0934,60962.0,60961.0,0.03350612]
[1719982746053,0.0944,60962.0,60961.0,0.03350612]
[1719982746254,0.0934,60962.0,60961.0,0.03350612]
[1719982746724,0.0944,60962.0,60961.0,0.03450612]
[1719982747071,0.0944,60962.0,60961.0,0.03350612]
[1719982747466,0.0974,60962.0,60961.0,0.001]
[1719982747905,0.0934,60962.0,60955.0,0.3]
[1719982748097,0.0934,60960.0,60955.0,0.33250612]
[1719982748393,0.0934,60960.0,60955.0,0.03250612]
[1719982748785,0.0964,60962.0,60955.0,0.33250612]
[1719982749030,0.0964,60962.0,60956.0,0.4387]
[1719982749256,0.0964,60962.0,60956.0,0.5422]
[1719982749460,0.0964,60962.0,60959.0,0.3]
[1719982749679,0.003,60962.0,60959.0,0.3]
[1719982749895,0.0934,60964.0,60960.0,0.2525]
[1719982750239,0.003,60962.0,60960.0,0.2525]
[1719982750645,0.1,60971.0,60961.0,0.3]
[1719982750845,0.0934,60967.0,60961.0,0.3]
[1719982751049,0.003,60962.0,60960.0,0.5525]
[1719982751602,0.0934,60967.0,60960.0,0.5525]
[1719982751800,0.003,60962.0,60960.0,0.5535]
[1719982752322,0.003,60962.0,60960.0,0.2535]
[1719982752505,0.003,60962.0,60960.0,0.2545]
[1719982752704,0.003,60962.0,60960.0,0.5545]
[1719982752923,0.003,60962.0,60960.0,0.2545]
[1719982753103,0.003,60962.0,60960.0,0.5545]
[1719982753309,0.0934,60966.0,60960.0,0.5535]
[1719982753725,0.0934,60963.0,60960.0,0.2545]
[1719982754331,0.0934,60963.0,60957.0,0.3]
[1719982754566,0.0934,60961.0,60960.0,0.002]
[1719982755452,0.0934,60961.0,60960.0,0.001]
[1719982755861,0.0944,60961.0,60960.0,0.002]
[1719982756425,0.0944,60961.0,60960.0,0.003]
[1719982757037,0.0944,60961.0,60960.0,0.002]
[1719982757502,0.0974,60961.0,60960.0,0.002]
[1719982757711,0.004,60961.0,60960.0,0.002]
[1719982759148,0.004,60961.0,60960.0,0.2464]
[1719982760087,0.004,60961.0,60960.0,0.5464]
[1719982760306,0.004,60961.0,60960.0,0.2464]
[1719982760520,0.004,60961.0,60960.0,0.6064]
[1719982768058,0.001,60961.0,60960.0,0.6064]
[1719982768509,0.003,60961.0,60960.0,0.6064]
[1719982769105,0.003,60961.0,60960.0,0.607324]
[1719982769302,0.00284,60961.0,60960.0,0.605324]
[1719982769853,0.00384,60961.0,60960.0,0.605324]
[1719982784691,0.00384,60961.0,60960.0,0.545324]
[1719982784946,0.6,60972.0,60960.0,0.245324]
[1719982785158,0.0934,60964.0,60960.0,0.245324]
[1719982785570,0.0934,60964.0,60960.0,0.03343012]
[1719982785800,0.19018442,60971.0,60960.0,0.03343012]
[1719982785801,0.0934,60961.0,60960.0,0.03343012]
[1719982786438,0.0934,60961.0,60960.0,0.03543012]
[1719982786678,0.0934,60961.0,60960.0,0.03443012]
[1719982786866,0.0934,60961.0,60960.0,0.03343012]
[1719982787206,0.0964,60961.0,60960.0,0.03343012]
[1719982791194,0.0964,60961.0,60960.0,0.000924]
[1719982797524,0.14410005,60961.0,60960.0,0.000924]
[1719982797733,0.24410005,60961.0,60960.0,0.000924]
[1719982800184,0.42880886,60961.0,60960.0,0.000924]
[1719982800387,0.46540479,60961.0,60949.0,0.2378]
[1719982800587,0.0934,60950.0,60949.0,0.16540612]
[1719982800862,0.0934,60950.0,60949.0,0.03250612]
[1719982802215,0.13651602,60950.0,60949.0,0.03250612]
[1719982802442,0.39681482,60950.0,60949.0,0.03250612]
[1719982802640,0.39681482,60950.0,60942.0,0.26460612]
[1719982802841,0.0934,60944.0,60942.0,0.26460612]
[1719982803039,0.0934,60944.0,60942.0,0.16330612]
[1719982804249,0.0934,60944.0,60940.0,0.000924]
[1719982804250,0.1696388,60943.0,60940.0,0.000924]
[1719982804379,0.0934,60941.0,60940.0,0.000924]
[1719982804599,0.2536988,60941.0,60940.0,0.000924]
[1719982804796,0.3536988,60941.0,60940.0,0.000924]
[1719982805229,0.1,60941.0,60940.0,0.000924]
[1719982805439,0.1934,60941.0,60940.0,0.000924]
[1719982806051,0.0934,60941.0,60940.0,0.000924]
[1719982807016,0.0964,60941.0,60940.0,0.000924]
[1719982807837,0.0994,60941.0,60940.0,0.000924]
[1719982810162,0.09920443,60941.0,60940.0,0.000924]
[1719982811277,0.27422084,60941.0,60940.0,0.000924]
[1719982811432,0.37422084,60941.0,60940.0,0.000924]
[1719982812657,0.35950323,60941.0,60940.0,0.000924]
[1719982813123,0.3596988,60941.0,60940.0,0.000924]
[1719982813943,0.2662988,60941.0,60940.0,0.000924]
[1719982814170,0.3596988,60941.0,60940.0,0.000924]
[1719982814440,0.2662988,60941.0,60940.0,0.000924]
[1719982814649,0.106,60941.0,60940.0,0.589224]
[1719982814867,0.006,60941.0,60940.0,0.589224]
[1719982815070,0.106,60941.0,60940.0,0.589224]
[1719982815888,0.103,60941.0,60940.0,0.589224]
[1719982816091,0.006,60941.0,60940.0,0.589224]
[1719982816723,0.003,60941.0,60940.0,0.589224]
[1719982817106,0.04797163,60944.0,60941.0,0.2288]
[1719982817407,0.1,60948.0,60943.0,0.5888]
[1719982817568,0.1,60948.0,60943.0,0.5288]
[1719982817954,0.14847135,60948.0,60943.0,0.5288]
[1719982818156,0.14847135,60948.0,60945.0,0.3]
[1719982818545,0.14847135,60948.0,60946.0,0.3]
[1719982818740,0.14847135,60948.0,60947.0,0.1237]
[1719982819995,0.14847135,60948.0,60947.0,0.2275]
[1719982820218,0.14847135,60948.0,60947.0,0.2285]
[1719982820430,0.16447135,60948.0,60947.0,0.2295]
[1719982821603,0.05647135,60948.0,60947.0,0.2285]
[1719982821774,0.05647135,60948.0,60947.0,0.5885]
[1719982821922,0.04847135,60948.0,60947.0,0.5875]
[1719982822124,0.0163,60949.0,60948.0,0.1338]
[1719982822378,0.0163,60949.0,60948.0,0.4338]
[1719982823317,0.0163,60949.0,60948.0,0.4938]
[1719982823851,0.0163,60949.0,60948.0,0.4948]
[1719982823852,0.0223,60949.0,60948.0,0.4948]
[1719982824458,0.0293,60949.0,60948.0,0.4958]
[1719982824655,0.006,60949.0,60948.0,0.4948]
[1719982825007,0.012,60949.0,60948.0,0.5931]
[1719982825191,0.006,60949.0,60948.0,0.5921]
[1719982825389,0.0934,60960.0,60954.0,0.5952]
[1719982825629,0.4161883,60955.0,60954.0,0.5952]
[1719982826508,0.5161883,60955.0,60954.0,0.5952]
[1719982827280,0.5211883,60955.0,60954.0,0.5952]
[1719982828580,0.5271883,60955.0,60954.0,0.5952]
[1719982830324,0.15913795,60955.0,60954.0,0.5952]
[1719982831198,0.05913795,60955.0,60954.0,0.5952]
[1719982832963,0.011,60955.0,60954.0,0.8952]
[1719982834028,0.006,60955.0,60954.0,0.8952]
[1719982834234,0.0934,60956.0,60954.0,0.8952]
[1719982834235,0.1934,60956.0,60954.0,0.8952]
[1719982834439,0.1934,60956.0,60955.0,0.4832]
[1719982836100,0.1934,60956.0,60955.0,0.4882]
[1719982836869,0.1934,60956.0,60955.0,0.4932]
[1719982837916,0.1,60956.0,60955.0,0.4932]
[1719982838127,0.14887913,60957.0,60956.0,0.36]
[1719982838457,0.1,60957.0,60956.0,0.36]
[1719982838661,0.0934,60958.0,60957.0,0.36]
[1719982840349,0.00084,60961.0,60960.0,0.3]
[1719982840552,0.09424,60961.0,60960.0,0.5309]
[1719982840750,0.09424,60961.0,60960.0,0.5909]
[1719982841565,0.1433041,60961.0,60960.0,0.5909]
[1719982841777,0.2453041,60961.0,60960.0,0.5909]
[1719982842185,0.2453041,60961.0,60960.0,0.5309]
[1719982842399,0.2453041,60961.0,60960.0,0.5909]
[1719982842611,0.2453041,60961.0,60960.0,0.5309]
[1719982843245,0.2463041,60961.0,60960.0,0.5909]
[1719982846254,0.2463041,60961.0,60960.0,0.5309]
[1719982847188,0.2453041,60961.0,60960.0,0.5309]
[1719982847798,0.2433041,60961.0,60960.0,0.5309]
[1719982848912,0.1499041,60961.0,60960.0,0.5909]
[1719982849124,0.00084,60961.0,60960.0,0.8909]
[1719982851749,0.00084,60961.0,60960.0,0.8969]
[1719982851931,0.00184,60961.0,60960.0,0.8969]
[1719982852134,0.00284,60961.0,60960.0,0.9029]
[1719982854691,0.00284,60961.0,60960.0,0.6029]
[1719982854893,0.09624,60961.0,60960.0,0.6029]
[1719982855343,0.09624,60961.0,60960.0,0.012]
[1719982857242,0.09524,60961.0,60960.0,0.006]
[1719982857777,0.09924,60961.0,60960.0,0.006]
[1719982858251,0.09524,60961.0,60960.0,0.006]
[1719982858469,0.09524,60961.0,60951.0,0.107]
[1719982858470,0.16326794,60961.0,60951.0,0.107]
[1719982858690,0.0934,60952.0,60951.0,0.107]
[1719982860218,0.0944,60952.0,60951.0,0.115]
[1719982860425,0.0944,60952.0,60951.0,0.415]
[1719982861469,0.0954,60952.0,60951.0,0.423]
[1719982862235,0.0954,60952.0,60951.0,0.483]
[1719982862888,0.002,60952.0,60951.0,0.483]
[1719982863091,0.002,60952.0,60951.0,0.783]
[1719982863296,0.002,60952.0,60951.0,0.9107]
[1719982863623,0.09791878,60962.0,60958.0,0.3]
[1719982863832,0.09791878,60962.0,60958.0,0.5316]
[1719982864045,0.09791878,60962.0,60959.0,0.3]
[1719982864346,0.0934,60960.0,60959.0,0.3]
[1719982864563,0.0934,60960.0,60958.0,0.5316]
[1719982865359,0.0934,60960.0,60959.0,0.36]
[1719982865568,0.0934,60960.0,60959.0,0.3]
[1719982866550,0.0964,60960.0,60959.0,0.3]
[1719982866732,0.0964,60960.0,60959.0,0.36]
[1719982866936,0.0934,60960.0,60959.0,0.36]
[1719982867129,0.09791878,60962.0,60961.0,0.36]
[1719982867340,0.19131878,60962.0,60961.0,0.36]
[1719982867900,0.00084,60961.0,60960.0,0.3]
[1719982868107,0.09424,60961.0,60960.0,0.36]
[1719982869684,0.09424,60961.0,60960.0,0.361]
[1719982870070,0.09424,60961.0,60960.0,0.301]
[1719982870471,0.09424,60961.0,60960.0,0.302]
[1719982870714,0.09424,60961.0,60960.0,0.362]
[1719982871123,0.09424,60961.0,60960.0,0.361]
[1719982871292,0.09424,60961.0,60960.0,0.301]
[1719982871503,0.09424,60961.0,60960.0,0.362]
[1719982873454,0.09424,60961.0,60960.0,0.002]
[1719982875434,0.09424,60961.0,60960.0,0.5807]
[1719982875435,0.00084,60961.0,60960.0,0.5807]
[1719982882384,0.00084,60961.0,60960.0,0.8807]
[1719982882544,0.00084,60961.0,60960.0,0.9107]
[1719982883093,0.00084,60961.0,60960.0,0.8807]
[1719982883860,0.00084,60961.0,60960.0,0.9107]
[1719982884653,0.00084,60961.0,60960.0,0.8807]
[1719982885046,0.00084,60961.0,60960.0,0.9107]
[1719982885451,0.00084,60961.0,60960.0,0.8807]
[1719982888001,0.32231681,60971.0,60961.0,0.1214]
[1719982888211,0.0934,60967.0,60966.0,0.36]
[1719982888824,0.0934,60967.0,60966.0,0.458]
[1719982889069,0.0934,60967.0,60966.0,0.5819]
[1719982889688,0.0934,60967.0,60966.0,0.5829]
[1719982889689,0.1004,60967.0,60966.0,0.5829]
[1719982890119,0.2004,60967.0,60966.0,0.5829]
[1719982890479,0.2064,60967.0,60966.0,0.5839]
[1719982890880,0.113,60967.0,60966.0,0.5839]
[1719982891282,0.013,60967.0,60966.0,0.5839]
[1719982895454,0.0125,60967.0,60966.0,0.5839]
[1719982895968,0.0125,60967.0,60966.0,1.1375988]
[1719982896158,0.0125,60967.0,60966.0,1.0441988]
[1719982896968,0.0065,60967.0,60966.0,1.0431988]
[1719982897196,0.001,60967.0,60966.0,1.0421988]
[1719982897537,0.002,60967.0,60966.0,1.0531988]
[1719982898888,0.001,60967.0,60966.0,1.0531988]
[1719982899351,0.002,60967.0,60966.0,1.0641988]
[1719982902155,0.002,60967.0,60966.0,1.0941988]
[1719982902543,0.002,60967.0,60966.0,1.0951228]
[1719982902753,0.00284,60967.0,60966.0,1.0951228]
[1719982903571,0.00284,60967.0,60966.0,1.1885228]
[1719982903772,0.00284,60967.0,60966.0,1.9215848]
[1719982903971,0.48177494,60984.0,60982.0,0.5774]
[1719982903972,0.1,60983.0,60982.0,0.5774]
[1719982904456,0.1,60983.0,60982.0,0.36]
[1719982905419,0.1,60983.0,60982.0,0.3]
[1719982906009,0.1,60983.0,60982.0,0.301]
[1719982906010,0.107,60983.0,60982.0,0.301]
[1719982906928,0.114,60983.0,60982.0,0.362]
[1719982908379,0.114,60983.0,60982.0,0.002]
[1719982909724,0.114,60983.0,60968.0,0.5163]
[1719982909725,0.34207148,60983.0,60969.0,0.3]
[1719982909946,0.0934,60970.0,60966.0,0.000924]
[1719982910152,0.08015582,60980.0,60966.0,0.000924]
[1719982910153,0.0934,60967.0,60966.0,0.000924]
[1719982911735,0.2331,60972.0,60966.0,0.300924]
[1719982911933,0.1,60971.0,60966.0,0.000924]
[1719982912884,0.1,60971.0,60969.0,0.3]
[1719982913035,0.1,60972.0,60969.0,0.3]
[1719982913430,0.1,60972.0,60969.0,0.301]
[1719982914023,0.1,60972.0,60970.0,0.3]
[1719982914678,0.1,60972.0,60969.0,0.305]
[1719982915096,0.1,60972.0,60969.0,0.3]
[1719982915386,0.1,60972.0,60970.0,0.3]
[1719982915578,0.1,60972.0,60971.0,0.36]
[1719982915787,0.1,60972.0,60971.0,0.3]
[1719982915788,0.101,60972.0,60971.0,0.3]
[1719982915911,0.1,60972.0,60971.0,0.36]
[1719982916124,0.1,60977.0,60973.0,0.3]
[1719982916760,0.002,60972.0,60970.0,0.3]
[1719982916944,0.002,60972.0,60967.0,0.3]
[1719982917167,0.104,60972.0,60967.0,0.3]
[1719982917396,0.1,60972.0,60967.0,0.3]
[1719982918497,0.102,60972.0,60967.0,0.3]
[1719982918675,0.102,60972.0,60966.0,0.300924]
[1719982918877,0.2331,60968.0,60966.0,0.000924]
[1719982920273,0.2331,60968.0,60966.0,0.003924]
[1719982920993,0.26661,60968.0,60966.0,0.006924]
[1719982921198,0.1,60967.0,60966.0,0.006924]
[1719982922811,0.1,60967.0,60966.0,0.003924]
[1719982923156,0.1,60967.0,60966.0,0.007924]
[1719982923595,0.1,60967.0,60966.0,0.004924]
[1719982923809,0.09994259,60967.0,60966.0,0.004924]
[1719982924221,0.09994259,60967.0,60966.0,0.368924]
[1719982924372,0.09994259,60967.0,60966.0,0.485824]